[Event "Titled Tuesday Blitz September 27 Early 2022"]
[White "Gabdrakhmanov, Azat"]
[Black "Avazkhonov, Alikhon"]
[WhiteFideId "34189197"]
[BlackFideId "14208504"]
[WhiteElo "2233"]
[BlackElo "1739"]
[Result "0-1"]
[Round "05"]
[TimeControl "180+1"]
[Date "2022.09.27"]
[WhiteClock "0:00:15"]
[BlackClock "0:00:05"]

1. e4 {[%clk 0:03:00]}  c5 {[%clk 0:02:59]} 2. Nf3 {[%clk 0:02:59]}  d6 {[%clk 0:02:59]} 3. d4 {[%clk 0:02:59]}  cxd4 {[%clk 0:03:00]} 4. Nxd4 {[%clk 0:03:00]}  Nf6 {[%clk 0:03:00]} 5. Nc3 {[%clk 0:03:00]}  a6 {[%clk 0:03:01]} 6. Be3 {[%clk 0:02:59]}  e5 {[%clk 0:03:01]} 7. Nb3 {[%clk 0:03:00]}  Be6 {[%clk 0:03:01]} 8. Qd2 {[%clk 0:03:00]}  Nbd7 {[%clk 0:02:58]} 9. O-O-O {[%clk 0:02:59]}  b5 {[%clk 0:02:53]} 10. f4 {[%clk 0:02:59]}  Rc8 {[%clk 0:02:38]} 11. f5 {[%clk 0:02:58]}  Bc4 {[%clk 0:02:38]} 12. g4 {[%clk 0:02:57]}  b4 {[%clk 0:01:19]} 13. Nd5 {[%clk 0:02:55]}  a5 {[%clk 0:00:50]} 14. Kb1 {[%clk 0:02:07]}  Nxe4 {[%clk 0:00:45]} 15. Qg2 {[%clk 0:02:06]}  Nef6 {[%clk 0:00:30]} 16. Bxc4 {[%clk 0:01:55]}  Rxc4 {[%clk 0:00:30]} 17. g5 {[%clk 0:01:50]}  Nxd5 {[%clk 0:00:13]} 18. Qxd5 {[%clk 0:01:51]}  Rc8 {[%clk 0:00:12]} 19. g6 {[%clk 0:01:44]}  hxg6 {[%clk 0:00:11]} 20. fxg6 {[%clk 0:01:45]}  fxg6 {[%clk 0:00:11]} 21. Rhf1 {[%clk 0:01:17]}  Nf6 {[%clk 0:00:11]} 22. Qb5+ {[%clk 0:01:14]}  Qd7 {[%clk 0:00:10]} 23. Qxa5 {[%clk 0:01:13]}  Rh3 {[%clk 0:00:10]} 24. Bg5 {[%clk 0:01:09]}  Qc6 {[%clk 0:00:10]} 25. Bxf6 {[%clk 0:00:57]}  gxf6 {[%clk 0:00:07]} 26. Rd2 {[%clk 0:00:56]}  f5 {[%clk 0:00:07]} 27. Qxb4 {[%clk 0:00:54]}  d5 {[%clk 0:00:07]} 28. Qa5 {[%clk 0:00:50]}  Bh6 {[%clk 0:00:07]} 29. Rg2 {[%clk 0:00:42]}  Bf4 {[%clk 0:00:07]} 30. Qa7 {[%clk 0:00:39]}  Rc7 {[%clk 0:00:07]} 31. Qb8+ {[%clk 0:00:38]}  Rc8 {[%clk 0:00:06]} 32. Qa7 {[%clk 0:00:38]}  Rc7 {[%clk 0:00:06]} 33. Qg1 {[%clk 0:00:36]}  Kf7 {[%clk 0:00:06]} 34. Re2 {[%clk 0:00:29]}  d4 {[%clk 0:00:05]} 35. Ka1 {[%clk 0:00:21]}  d3 {[%clk 0:00:04]} 36. cxd3 {[%clk 0:00:21]}  Rxd3 {[%clk 0:00:05]} 37. Ree1 {[%clk 0:00:20]}  Qd5 {[%clk 0:00:05]} 38. Rd1 {[%clk 0:00:19]}  Rc2 {[%clk 0:00:05]} 39. Rb1 {[%clk 0:00:19]}  Rxb3 {[%clk 0:00:04]} 40. Qa7+ {[%clk 0:00:16]}  Rb7 {[%clk 0:00:05]} 41. Qa8 {[%clk 0:00:16]}  e4 {[%clk 0:00:05]} 42. Qh8 {[%clk 0:00:16]}  Be5 {[%clk 0:00:05]} 43. Qh7+ {[%clk 0:00:16]}  Bg7 {[%clk 0:00:05]} 44. Rfd1 {[%clk 0:00:15]}  Rcxb2 {[%clk 0:00:05]} 45. Qxg7+ {[%clk 0:00:14]}  Kxg7 {[%clk 0:00:05]} 46. Rxd5 {[%clk 0:00:15]}  Rxb1# {[%clk 0:00:05]} 0-1


[Site "https://www.chess.com"]

[Event "Titled Tuesday Blitz September 27 Early 2022"]
[White "Gabrielian, Artur"]
[Black "Vokhidov, Shamsiddin"]
[WhiteFideId "4131002"]
[BlackFideId "14204223"]
[WhiteElo "2467"]
[BlackElo "2619"]
[Result "0-1"]
[Round "05"]
[TimeControl "180+1"]
[Date "2022.09.27"]
[WhiteClock "0:00:01"]
[BlackClock "0:00:17"]

1. e4 {[%clk 0:03:00]}  c5 {[%clk 0:03:00]} 2. Nf3 {[%clk 0:03:00]}  d6 {[%clk 0:03:00]} 3. d4 {[%clk 0:03:00]}  cxd4 {[%clk 0:03:01]} 4. Nxd4 {[%clk 0:03:01]}  Nf6 {[%clk 0:03:02]} 5. Nc3 {[%clk 0:03:01]}  a6 {[%clk 0:03:02]} 6. Bd3 {[%clk 0:03:02]}  g6 {[%clk 0:03:02]} 7. O-O {[%clk 0:03:00]}  Bg7 {[%clk 0:03:01]} 8. Kh1 {[%clk 0:03:00]}  O-O {[%clk 0:02:59]} 9. f4 {[%clk 0:03:00]}  Nc6 {[%clk 0:02:55]} 10. Nf3 {[%clk 0:03:00]}  b5 {[%clk 0:02:53]} 11. a3 {[%clk 0:03:00]}  Bb7 {[%clk 0:02:53]} 12. Qe1 {[%clk 0:03:00]}  e6 {[%clk 0:02:30]} 13. Qh4 {[%clk 0:02:52]}  Nd7 {[%clk 0:02:28]} 14. Qh3 {[%clk 0:02:52]}  b4 {[%clk 0:02:23]} 15. axb4 {[%clk 0:02:50]}  Nxb4 {[%clk 0:02:24]} 16. f5 {[%clk 0:02:50]}  Nxd3 {[%clk 0:02:22]} 17. cxd3 {[%clk 0:02:50]}  exf5 {[%clk 0:02:19]} 18. exf5 {[%clk 0:02:48]}  Bxf3 {[%clk 0:01:50]} 19. Rxf3 {[%clk 0:02:42]}  Re8 {[%clk 0:01:45]} 20. Bh6 {[%clk 0:02:41]}  Ne5 {[%clk 0:01:43]} 21. Rff1 {[%clk 0:02:32]}  Bxh6 {[%clk 0:01:41]} 22. Qxh6 {[%clk 0:02:31]}  Ng4 {[%clk 0:01:41]} 23. Qf4 {[%clk 0:02:27]}  Ne3 {[%clk 0:01:31]} 24. f6 {[%clk 0:01:45]}  Nxf1 {[%clk 0:01:28]} 25. Rxf1 {[%clk 0:01:45]}  Re6 {[%clk 0:01:26]} 26. Nd5 {[%clk 0:01:45]}  Rc8 {[%clk 0:01:14]} 27. d4 {[%clk 0:01:32]}  Rc2 {[%clk 0:01:10]} 28. h3 {[%clk 0:01:31]}  Qe8 {[%clk 0:01:03]} 29. Qh4 {[%clk 0:01:14]}  Rxb2 {[%clk 0:00:55]} 30. Nc7 {[%clk 0:01:05]}  Qc6 {[%clk 0:00:29]} 31. d5 {[%clk 0:00:59]}  Qc2 {[%clk 0:00:29]} 32. Qg4 {[%clk 0:00:55]}  h5 {[%clk 0:00:25]} 33. Qg3 {[%clk 0:00:18]}  Re3 {[%clk 0:00:24]} 34. Rf3 {[%clk 0:00:05]}  Rxf3 {[%clk 0:00:19]} 35. Qxf3 {[%clk 0:00:05]}  Qxc7 {[%clk 0:00:19]} 36. Qf4 {[%clk 0:00:06]}  Qd8 {[%clk 0:00:18]} 37. Kh2 {[%clk 0:00:04]}  Rb5 {[%clk 0:00:18]} 38. Qd4 {[%clk 0:00:01]}  Qe8 {[%clk 0:00:17]} 0-1


[Site "https://www.chess.com"]

[Event "Titled Tuesday Blitz September 27 Early 2022"]
[White "Gajwa Ankit"]
[Black "Maltsevskaya, Aleksandra"]
[WhiteFideId "5077834"]
[BlackFideId "24174041"]
[WhiteElo "2036"]
[BlackElo "2243"]
[Result "0-1"]
[Round "05"]
[TimeControl "180+1"]
[Date "2022.09.27"]
[WhiteClock "0:00:22"]
[BlackClock "0:00:50"]

1. e4 {[%clk 0:03:00]}  c5 {[%clk 0:02:48]} 2. Nf3 {[%clk 0:02:58]}  e6 {[%clk 0:02:47]} 3. d4 {[%clk 0:02:58]}  cxd4 {[%clk 0:02:48]} 4. Nxd4 {[%clk 0:02:59]}  Nf6 {[%clk 0:02:48]} 5. Nc3 {[%clk 0:02:59]}  Nc6 {[%clk 0:02:49]} 6. Ndb5 {[%clk 0:02:59]}  Bc5 {[%clk 0:02:49]} 7. Be3 {[%clk 0:02:47]}  Bxe3 {[%clk 0:02:45]} 8. fxe3 {[%clk 0:02:47]}  O-O {[%clk 0:02:45]} 9. Qd2 {[%clk 0:02:43]}  a6 {[%clk 0:02:43]} 10. Nd6 {[%clk 0:02:42]}  b5 {[%clk 0:02:43]} 11. O-O-O {[%clk 0:02:39]}  b4 {[%clk 0:02:43]} 12. Ne2 {[%clk 0:02:39]}  a5 {[%clk 0:02:41]} 13. g4 {[%clk 0:02:30]}  a4 {[%clk 0:02:40]} 14. g5 {[%clk 0:02:28]}  Ne8 {[%clk 0:02:40]} 15. Nxc8 {[%clk 0:02:21]}  Qxc8 {[%clk 0:02:28]} 16. Qxd7 {[%clk 0:02:20]}  b3 {[%clk 0:02:25]} 17. Qxc8 {[%clk 0:02:10]}  Rxc8 {[%clk 0:02:22]} 18. axb3 {[%clk 0:02:10]}  axb3 {[%clk 0:02:22]} 19. cxb3 {[%clk 0:02:05]}  Nd4+ {[%clk 0:02:04]} 20. Nc3 {[%clk 0:02:04]}  Nxb3+ {[%clk 0:02:03]} 21. Kc2 {[%clk 0:02:05]}  Nc5 {[%clk 0:02:03]} 22. Rd4 {[%clk 0:01:29]}  e5 {[%clk 0:01:52]} 23. Rc4 {[%clk 0:01:28]}  Nd6 {[%clk 0:01:52]} 24. Rb4 {[%clk 0:01:23]}  Ncxe4 {[%clk 0:01:49]} 25. Ba6 {[%clk 0:01:18]}  Rc6 {[%clk 0:01:49]} 26. Rxe4 {[%clk 0:01:12]}  Rxa6 {[%clk 0:01:12]} 27. Rxe5 {[%clk 0:01:11]}  Rb8 {[%clk 0:01:12]} 28. b3 {[%clk 0:00:44]}  Rc6 {[%clk 0:01:11]} 29. Rc1 {[%clk 0:00:37]}  Kf8 {[%clk 0:00:57]} 30. Rd5 {[%clk 0:00:28]}  Ne4 {[%clk 0:00:54]} 31. Kb2 {[%clk 0:00:27]}  Nc5 {[%clk 0:00:50]} 32. Na4 {[%clk 0:00:22]}  Nxa4+ {[%clk 0:00:50]} 0-1


[Site "https://www.chess.com"]

[Event "Titled Tuesday Blitz September 27 Early 2022"]
[White "Grandelius, Nils"]
[Black "Goltsev, Dmitry"]
[WhiteFideId "1710400"]
[BlackFideId "24176710"]
[WhiteElo "2617"]
[BlackElo "2257"]
[Result "1/2-1/2"]
[Round "05"]
[TimeControl "180+1"]
[Date "2022.09.27"]
[WhiteClock "0:00:10"]
[BlackClock "0:00:16"]

1. Nf3 {[%clk 0:03:00]}  d5 {[%clk 0:03:00]} 2. e3 {[%clk 0:03:00]}  c6 {[%clk 0:03:00]} 3. c4 {[%clk 0:03:00]}  Nf6 {[%clk 0:03:01]} 4. Nc3 {[%clk 0:03:00]}  Bg4 {[%clk 0:03:00]} 5. cxd5 {[%clk 0:02:59]}  Nxd5 {[%clk 0:03:01]} 6. Qb3 {[%clk 0:02:56]}  Qb6 {[%clk 0:02:50]} 7. Nxd5 {[%clk 0:02:46]}  Qxb3 {[%clk 0:02:50]} 8. axb3 {[%clk 0:02:47]}  cxd5 {[%clk 0:02:50]} 9. Nd4 {[%clk 0:02:48]}  Bd7 {[%clk 0:02:47]} 10. Nb5 {[%clk 0:02:08]}  Bxb5 {[%clk 0:02:46]} 11. Bxb5+ {[%clk 0:02:09]}  Nc6 {[%clk 0:02:45]} 12. d4 {[%clk 0:02:06]}  e6 {[%clk 0:02:41]} 13. Bd2 {[%clk 0:02:06]}  Kd7 {[%clk 0:02:40]} 14. Ke2 {[%clk 0:02:04]}  Bd6 {[%clk 0:02:39]} 15. Rhc1 {[%clk 0:02:02]}  a6 {[%clk 0:02:39]} 16. Bd3 {[%clk 0:02:00]}  Nb4 {[%clk 0:02:36]} 17. Bb1 {[%clk 0:01:54]}  Rhc8 {[%clk 0:02:35]} 18. Rc3 {[%clk 0:01:55]}  Nc6 {[%clk 0:02:33]} 19. h4 {[%clk 0:01:52]}  Bb4 {[%clk 0:02:32]} 20. Rxc6 {[%clk 0:01:48]}  Rxc6 {[%clk 0:02:29]} 21. Bxb4 {[%clk 0:01:48]}  Rc1 {[%clk 0:02:28]} 22. Bd2 {[%clk 0:01:48]}  Rh1 {[%clk 0:02:23]} 23. Be1 {[%clk 0:01:38]}  Rxh4 {[%clk 0:02:14]} 24. Bd3 {[%clk 0:01:37]}  Rc8 {[%clk 0:02:11]} 25. b4 {[%clk 0:01:35]}  Rh1 {[%clk 0:02:10]} 26. b5 {[%clk 0:01:30]}  axb5 {[%clk 0:02:09]} 27. Bxb5+ {[%clk 0:01:31]}  Rc6 {[%clk 0:01:51]} 28. Bxc6+ {[%clk 0:01:26]}  Kxc6 {[%clk 0:01:52]} 29. Ra8 {[%clk 0:01:25]}  g6 {[%clk 0:01:46]} 30. Rf8 {[%clk 0:01:11]}  f5 {[%clk 0:01:44]} 31. Bb4 {[%clk 0:00:54]}  g5 {[%clk 0:01:40]} 32. Rd8 {[%clk 0:00:54]}  h5 {[%clk 0:01:33]} 33. Rd6+ {[%clk 0:00:53]}  Kb5 {[%clk 0:01:32]} 34. Be1 {[%clk 0:00:52]}  h4 {[%clk 0:01:27]} 35. Rxe6 {[%clk 0:00:50]}  Rh2 {[%clk 0:01:28]} 36. Re5 {[%clk 0:00:33]}  Rxg2 {[%clk 0:01:26]} 37. Rxd5+ {[%clk 0:00:34]}  Kc4 {[%clk 0:01:24]} 38. Rc5+ {[%clk 0:00:31]}  Kb3 {[%clk 0:01:22]} 39. Rb5+ {[%clk 0:00:32]}  Kc2 {[%clk 0:01:22]} 40. Rxb7 {[%clk 0:00:30]}  h3 {[%clk 0:01:21]} 41. Rh7 {[%clk 0:00:30]}  g4 {[%clk 0:01:16]} 42. Kf1 {[%clk 0:00:28]}  Kd3 {[%clk 0:01:07]} 43. Ra7 {[%clk 0:00:21]}  Rh2 {[%clk 0:01:01]} 44. Ra3+ {[%clk 0:00:21]}  Ke4 {[%clk 0:01:01]} 45. Ke2 {[%clk 0:00:19]}  f4 {[%clk 0:00:58]} 46. exf4 {[%clk 0:00:19]}  Kxd4 {[%clk 0:00:55]} 47. Ra8 {[%clk 0:00:14]}  g3 {[%clk 0:00:53]} 48. Rg8 {[%clk 0:00:13]}  g2 {[%clk 0:00:53]} 49. Bc3+ {[%clk 0:00:09]}  Ke4 {[%clk 0:00:52]} 50. f3+ {[%clk 0:00:09]}  Kxf4 {[%clk 0:00:50]} 51. Rg4+ {[%clk 0:00:03]}  Kf5 {[%clk 0:00:49]} 52. Kd3 {[%clk 0:00:04]}  Rh1 {[%clk 0:00:48]} 53. Bd4 {[%clk 0:00:04]}  Rd1+ {[%clk 0:00:49]} 54. Kc4 {[%clk 0:00:04]}  Rxd4+ {[%clk 0:00:48]} 55. Kxd4 {[%clk 0:00:05]}  h2 {[%clk 0:00:48]} 56. Rxg2 {[%clk 0:00:06]}  h1=Q {[%clk 0:00:49]} 57. Rd2 {[%clk 0:00:07]}  Kf4 {[%clk 0:00:45]} 58. Kc3 {[%clk 0:00:07]}  Qc1+ {[%clk 0:00:44]} 59. Rc2 {[%clk 0:00:07]}  Qe3+ {[%clk 0:00:44]} 60. Kb4 {[%clk 0:00:07]}  Qxf3 {[%clk 0:00:43]} 61. Rc3 {[%clk 0:00:06]}  Qb7+ {[%clk 0:00:42]} 62. Ka3 {[%clk 0:00:06]}  Ke4 {[%clk 0:00:42]} 63. Ka2 {[%clk 0:00:07]}  Kd4 {[%clk 0:00:42]} 64. Kb1 {[%clk 0:00:07]}  Qe4+ {[%clk 0:00:42]} 65. Ka2 {[%clk 0:00:07]}  Qe6+ {[%clk 0:00:43]} 66. Ka1 {[%clk 0:00:08]}  Qa6+ {[%clk 0:00:42]} 67. Kb1 {[%clk 0:00:08]}  Qf1+ {[%clk 0:00:42]} 68. Ka2 {[%clk 0:00:09]}  Qd1 {[%clk 0:00:42]} 69. Ra3 {[%clk 0:00:08]}  Kc4 {[%clk 0:00:41]} 70. Rc3+ {[%clk 0:00:08]}  Kb4 {[%clk 0:00:41]} 71. Ra3 {[%clk 0:00:09]}  Qd5+ {[%clk 0:00:40]} 72. Ka1 {[%clk 0:00:10]}  Qd1+ {[%clk 0:00:36]} 73. Ka2 {[%clk 0:00:10]}  Qe1 {[%clk 0:00:28]} 74. Rc3 {[%clk 0:00:10]}  Qxc3 {[%clk 0:00:15]} 75. bxc3+ {[%clk 0:00:10]}  Kxc3 {[%clk 0:00:16]} 1/2-1/2


[Site "https://www.chess.com"]

[Event "Titled Tuesday Blitz September 27 Early 2022"]
[White "Haitin, Ilja"]
[Black "Badelka, Olga"]
[WhiteFideId "4501764"]
[BlackFideId "13509926"]
[WhiteElo "2243"]
[BlackElo "2165"]
[Result "0-1"]
[Round "05"]
[TimeControl "180+1"]
[Date "2022.09.27"]
[WhiteClock "0:00:01"]
[BlackClock "0:00:03"]

1. e4 {[%clk 0:03:00]}  e5 {[%clk 0:02:59]} 2. Nf3 {[%clk 0:02:55]}  Nc6 {[%clk 0:02:59]} 3. Nc3 {[%clk 0:02:53]}  Nf6 {[%clk 0:02:58]} 4. Bb5 {[%clk 0:02:49]}  Bd6 {[%clk 0:02:58]} 5. O-O {[%clk 0:02:48]}  O-O {[%clk 0:02:54]} 6. Re1 {[%clk 0:02:48]}  a6 {[%clk 0:02:53]} 7. Bf1 {[%clk 0:02:45]}  Re8 {[%clk 0:02:46]} 8. d3 {[%clk 0:02:24]}  Bc5 {[%clk 0:02:46]} 9. h3 {[%clk 0:02:22]}  d6 {[%clk 0:02:43]} 10. g3 {[%clk 0:02:19]}  h6 {[%clk 0:02:43]} 11. Bg2 {[%clk 0:02:19]}  Nd4 {[%clk 0:02:42]} 12. Nxd4 {[%clk 0:01:57]}  Bxd4 {[%clk 0:02:42]} 13. Ne2 {[%clk 0:01:52]}  Bb6 {[%clk 0:02:41]} 14. Rf1 {[%clk 0:01:52]}  Be6 {[%clk 0:02:27]} 15. Kh2 {[%clk 0:01:50]}  d5 {[%clk 0:02:27]} 16. Nc3 {[%clk 0:01:48]}  dxe4 {[%clk 0:02:23]} 17. Nxe4 {[%clk 0:01:43]}  Nxe4 {[%clk 0:02:19]} 18. Bxe4 {[%clk 0:01:44]}  Bd5 {[%clk 0:02:19]} 19. Qf3 {[%clk 0:01:35]}  c6 {[%clk 0:02:05]} 20. Be3 {[%clk 0:01:28]}  Bxe3 {[%clk 0:01:54]} 21. fxe3 {[%clk 0:01:28]}  Qd7 {[%clk 0:01:45]} 22. Rf2 {[%clk 0:01:19]}  Be6 {[%clk 0:01:38]} 23. g4 {[%clk 0:01:03]}  Bd5 {[%clk 0:01:34]} 24. Raf1 {[%clk 0:00:56]}  Bxe4 {[%clk 0:01:27]} 25. Qxe4 {[%clk 0:00:54]}  Re7 {[%clk 0:01:24]} 26. Rf5 {[%clk 0:00:40]}  Rae8 {[%clk 0:01:23]} 27. h4 {[%clk 0:00:34]}  Qd5 {[%clk 0:01:22]} 28. Qxd5 {[%clk 0:00:14]}  cxd5 {[%clk 0:01:22]} 29. R5f2 {[%clk 0:00:14]}  Rc8 {[%clk 0:01:18]} 30. Re1 {[%clk 0:00:12]}  Rec7 {[%clk 0:01:17]} 31. Ree2 {[%clk 0:00:12]}  Rc6 {[%clk 0:01:13]} 32. Kg3 {[%clk 0:00:12]}  Rb6 {[%clk 0:01:12]} 33. b3 {[%clk 0:00:12]}  a5 {[%clk 0:01:12]} 34. a4 {[%clk 0:00:12]}  Rbc6 {[%clk 0:01:05]} 35. Kh3 {[%clk 0:00:10]}  Kf8 {[%clk 0:01:04]} 36. Kg3 {[%clk 0:00:09]}  Ke7 {[%clk 0:01:04]} 37. Kh3 {[%clk 0:00:09]}  Ke6 {[%clk 0:01:03]} 38. Kg3 {[%clk 0:00:09]}  Rc3 {[%clk 0:00:59]} 39. Kg2 {[%clk 0:00:08]}  f6 {[%clk 0:00:58]} 40. Kh2 {[%clk 0:00:08]}  R3c6 {[%clk 0:00:58]} 41. Kg3 {[%clk 0:00:08]}  g6 {[%clk 0:00:59]} 42. Kh3 {[%clk 0:00:07]}  f5 {[%clk 0:00:59]} 43. gxf5+ {[%clk 0:00:07]}  gxf5 {[%clk 0:01:00]} 44. Rg2 {[%clk 0:00:07]}  Kf7 {[%clk 0:00:58]} 45. h5 {[%clk 0:00:07]}  Rg8 {[%clk 0:00:57]} 46. Rxg8 {[%clk 0:00:05]}  Kxg8 {[%clk 0:00:58]} 47. Rg2+ {[%clk 0:00:05]}  Kf7 {[%clk 0:00:58]} 48. Kh4 {[%clk 0:00:05]}  Rf6 {[%clk 0:00:51]} 49. Rf2 {[%clk 0:00:04]}  Ke6 {[%clk 0:00:49]} 50. Rf1 {[%clk 0:00:04]}  d4 {[%clk 0:00:22]} 51. exd4 {[%clk 0:00:03]}  exd4 {[%clk 0:00:23]} 52. Kg3 {[%clk 0:00:03]}  Kd5 {[%clk 0:00:18]} 53. Kf4 {[%clk 0:00:03]}  Rc6 {[%clk 0:00:16]} 54. Rf2 {[%clk 0:00:03]}  Rc8 {[%clk 0:00:16]} 55. Re2 {[%clk 0:00:03]}  Kd6 {[%clk 0:00:12]} 56. Kxf5 {[%clk 0:00:03]}  Rg8 {[%clk 0:00:11]} 57. Kf4 {[%clk 0:00:02]}  Rg5 {[%clk 0:00:08]} 58. Rh2 {[%clk 0:00:02]}  Kd5 {[%clk 0:00:07]} 59. Rh3 {[%clk 0:00:02]}  b6 {[%clk 0:00:06]} 60. Rh2 {[%clk 0:00:02]}  Re5 {[%clk 0:00:06]} 61. Rg2 {[%clk 0:00:02]}  Re1 {[%clk 0:00:03]} 62. Rg6 {[%clk 0:00:01]}  Rc1 {[%clk 0:00:02]} 63. Rxb6 {[%clk 0:00:01]}  Rxc2 {[%clk 0:00:03]} 0-1


[Site "https://www.chess.com"]

[Event "Titled Tuesday Blitz September 27 Early 2022"]
[White "Harsha Bharathakoti"]
[Black "Wojtaszek, Radoslaw"]
[WhiteFideId "5078776"]
[BlackFideId "1118358"]
[WhiteElo "2523"]
[BlackElo "2606"]
[Result "0-1"]
[Round "05"]
[TimeControl "180+1"]
[Date "2022.09.27"]
[WhiteClock "0:00:01"]
[BlackClock "0:00:01"]

1. Nf3 {[%clk 0:03:00]}  c5 {[%clk 0:02:57]} 2. c4 {[%clk 0:02:59]}  Nf6 {[%clk 0:02:55]} 3. d4 {[%clk 0:02:59]}  cxd4 {[%clk 0:02:54]} 4. Nxd4 {[%clk 0:02:59]}  b6 {[%clk 0:02:53]} 5. Nc3 {[%clk 0:02:54]}  Bb7 {[%clk 0:02:53]} 6. f3 {[%clk 0:02:54]}  e6 {[%clk 0:02:50]} 7. e4 {[%clk 0:02:53]}  d6 {[%clk 0:02:47]} 8. Be3 {[%clk 0:02:52]}  Be7 {[%clk 0:02:47]} 9. Be2 {[%clk 0:02:51]}  a6 {[%clk 0:02:46]} 10. O-O {[%clk 0:02:50]}  Nbd7 {[%clk 0:02:46]} 11. a4 {[%clk 0:02:49]}  O-O {[%clk 0:02:41]} 12. a5 {[%clk 0:02:47]}  bxa5 {[%clk 0:02:41]} 13. Nb3 {[%clk 0:02:47]}  Rb8 {[%clk 0:02:37]} 14. Nxa5 {[%clk 0:02:48]}  Ba8 {[%clk 0:02:38]} 15. Qd2 {[%clk 0:02:33]}  Qc7 {[%clk 0:02:17]} 16. Rfc1 {[%clk 0:02:22]}  Ne5 {[%clk 0:01:28]} 17. b4 {[%clk 0:01:55]}  Rfc8 {[%clk 0:01:22]} 18. Na4 {[%clk 0:01:19]}  h6 {[%clk 0:01:17]} 19. c5 {[%clk 0:01:05]}  dxc5 {[%clk 0:01:12]} 20. Nxc5 {[%clk 0:01:05]}  Rd8 {[%clk 0:00:33]} 21. Qe1 {[%clk 0:00:36]}  Qb6 {[%clk 0:00:26]} 22. Rab1 {[%clk 0:00:24]}  Nfd7 {[%clk 0:00:21]} 23. Bf1 {[%clk 0:00:20]}  Nxc5 {[%clk 0:00:14]} 24. bxc5 {[%clk 0:00:21]}  Qc7 {[%clk 0:00:12]} 25. Rxb8 {[%clk 0:00:18]}  Rxb8 {[%clk 0:00:13]} 26. Bxa6 {[%clk 0:00:18]}  Bd8 {[%clk 0:00:13]} 27. Ra1 {[%clk 0:00:13]}  Rb2 {[%clk 0:00:10]} 28. Be2 {[%clk 0:00:09]}  Be7 {[%clk 0:00:04]} 29. Rc1 {[%clk 0:00:07]}  Rxe2 {[%clk 0:00:01]} 30. Qxe2 {[%clk 0:00:08]}  Qxa5 {[%clk 0:00:01]} 31. Bd4 {[%clk 0:00:06]}  Nc6 {[%clk 0:00:01]} 32. Be3 {[%clk 0:00:01]}  Qc7 {[%clk 0:00:01]} 0-1


[Site "https://www.chess.com"]

[Event "Titled Tuesday Blitz September 27 Early 2022"]
[White "Harshad S"]
[Black "Bluebaum, Matthias"]
[WhiteFideId "46616551"]
[BlackFideId "24651516"]
[WhiteElo "2046"]
[BlackElo "2633"]
[Result "0-1"]
[Round "05"]
[TimeControl "180+1"]
[Date "2022.09.27"]
[WhiteClock "0:00:03"]
[BlackClock "0:01:19"]

1. e4 {[%clk 0:03:00]}  e6 {[%clk 0:02:59]} 2. d4 {[%clk 0:03:00]}  d5 {[%clk 0:03:00]} 3. Nc3 {[%clk 0:03:00]}  Nf6 {[%clk 0:02:58]} 4. e5 {[%clk 0:02:59]}  Nfd7 {[%clk 0:02:58]} 5. Nce2 {[%clk 0:02:59]}  c5 {[%clk 0:02:59]} 6. c3 {[%clk 0:02:59]}  Nc6 {[%clk 0:02:59]} 7. Nf3 {[%clk 0:03:00]}  Be7 {[%clk 0:02:56]} 8. Nf4 {[%clk 0:02:59]}  cxd4 {[%clk 0:02:52]} 9. cxd4 {[%clk 0:03:00]}  Bb4+ {[%clk 0:02:52]} 10. Bd2 {[%clk 0:03:00]}  Qb6 {[%clk 0:02:53]} 11. Bxb4 {[%clk 0:02:52]}  Qxb4+ {[%clk 0:02:54]} 12. Qd2 {[%clk 0:02:53]}  Qxd2+ {[%clk 0:02:53]} 13. Kxd2 {[%clk 0:02:54]}  g5 {[%clk 0:02:54]} 14. Ne2 {[%clk 0:02:29]}  h6 {[%clk 0:02:46]} 15. h4 {[%clk 0:02:27]}  g4 {[%clk 0:02:45]} 16. Ne1 {[%clk 0:02:28]}  f6 {[%clk 0:02:45]} 17. exf6 {[%clk 0:02:21]}  Nxf6 {[%clk 0:02:46]} 18. f3 {[%clk 0:02:21]}  Bd7 {[%clk 0:02:33]} 19. Nd3 {[%clk 0:02:20]}  Ke7 {[%clk 0:02:29]} 20. Ne5 {[%clk 0:02:06]}  Rhg8 {[%clk 0:02:22]} 21. Nxc6+ {[%clk 0:01:43]}  Bxc6 {[%clk 0:02:19]} 22. Re1 {[%clk 0:01:43]}  Nh5 {[%clk 0:02:08]} 23. f4 {[%clk 0:01:21]}  g3 {[%clk 0:02:04]} 24. f5 {[%clk 0:01:07]}  Raf8 {[%clk 0:01:59]} 25. fxe6 {[%clk 0:01:04]}  Rf2 {[%clk 0:01:59]} 26. Kc1 {[%clk 0:00:36]}  Rg6 {[%clk 0:01:56]} 27. Nc3 {[%clk 0:00:28]}  Rxe6 {[%clk 0:01:52]} 28. Be2 {[%clk 0:00:28]}  Nf4 {[%clk 0:01:47]} 29. Kd2 {[%clk 0:00:11]}  Nxg2 {[%clk 0:01:40]} 30. Ref1 {[%clk 0:00:09]}  Nf4 {[%clk 0:01:14]} 31. Rxf2 {[%clk 0:00:09]}  gxf2 {[%clk 0:01:15]} 32. Rf1 {[%clk 0:00:10]}  Nxe2 {[%clk 0:01:15]} 33. Nxe2 {[%clk 0:00:10]}  Rxe2+ {[%clk 0:01:16]} 34. Kxe2 {[%clk 0:00:08]}  Bb5+ {[%clk 0:01:17]} 35. Kxf2 {[%clk 0:00:09]}  Bxf1 {[%clk 0:01:17]} 36. Kxf1 {[%clk 0:00:10]}  Kf6 {[%clk 0:01:18]} 37. Ke2 {[%clk 0:00:10]}  Kf5 {[%clk 0:01:19]} 38. Kf3 {[%clk 0:00:11]}  h5 {[%clk 0:01:19]} 39. a3 {[%clk 0:00:10]}  a6 {[%clk 0:01:18]} 40. b3 {[%clk 0:00:10]}  b6 {[%clk 0:01:19]} 41. b4 {[%clk 0:00:03]}  b5 {[%clk 0:01:19]} 0-1


[Site "https://www.chess.com"]

[Event "Titled Tuesday Blitz September 27 Early 2022"]
[White "Huber, Benedikt"]
[Black "Maksimenko, Viktor"]
[WhiteFideId "12923583"]
[BlackFideId "13710478"]
[WhiteElo "1979"]
[BlackElo "2269"]
[Result "0-1"]
[Round "05"]
[TimeControl "180+1"]
[Date "2022.09.27"]
[WhiteClock "0:01:50"]
[BlackClock "0:01:39"]

1. d4 {[%clk 0:02:35]}  Nf6 {[%clk 0:02:56]} 2. Nc3 {[%clk 0:02:35]}  d5 {[%clk 0:02:56]} 3. Bf4 {[%clk 0:02:33]}  c5 {[%clk 0:02:56]} 4. e4 {[%clk 0:02:33]}  cxd4 {[%clk 0:02:51]} 5. Qxd4 {[%clk 0:02:34]}  Nc6 {[%clk 0:02:52]} 6. Bb5 {[%clk 0:02:33]}  Bd7 {[%clk 0:02:52]} 7. Bxc6 {[%clk 0:02:32]}  Bxc6 {[%clk 0:02:53]} 8. e5 {[%clk 0:02:32]}  Ne4 {[%clk 0:02:53]} 9. e6 {[%clk 0:02:11]}  fxe6 {[%clk 0:02:28]} 10. Nf3 {[%clk 0:02:11]}  Qb6 {[%clk 0:02:15]} 11. Nxe4 {[%clk 0:02:00]}  dxe4 {[%clk 0:02:13]} 12. Qe5 {[%clk 0:01:54]}  exf3 {[%clk 0:02:05]} 13. Qh5+ {[%clk 0:01:54]}  g6 {[%clk 0:02:04]} 14. Qe5 {[%clk 0:01:54]}  fxg2 {[%clk 0:01:47]} 15. Rg1 {[%clk 0:01:54]}  Rg8 {[%clk 0:01:47]} 16. Qxe6 {[%clk 0:01:55]}  Qb4+ {[%clk 0:01:39]} 17. Kd1 {[%clk 0:01:50]} 0-1


[Site "https://www.chess.com"]